Cogmind - Beta 16.1 @@@ ROGUE MODE // 2026.02.15 @ 15:35:48 Player: Rudrot Result: Destroyed by D-53 Grenadier with Mini Grenade Launcher Performance ------------- Evolutions (0) 0 Regions Visited (2) 400 Robots Destroyed (12) 60 Value Destroyed (206) 206 Prototype IDs (3) 60 Alien Tech Used (0) 0 Bonus (0) 0 TOTAL SCORE: 726 Bonus ------- None Cogmind --------- Core Integrity 0/250 Matter 252/300 Energy 250/250 System Corruption 0% Temperature Cool (0) Movement Core (250) Ox4 Location -10/Mines Parts ------- > --- POWER (1) -------- Ion Engine > --- PROPULSION (2) --- (None) > --- UTILITY (2) ------ Small Storage Unit Signal Interpreter > --- WEAPON (2) ------- Grenade Launcher > --- INVENTORY (8) ---- Seismic Detector Targeting Computer Propulsion Shielding Peak State ------------ > --- POWER ------------ Ion Engine > --- PROPULSION ------- Aluminum Leg Aluminum Leg > --- UTILITY ---------- Small Storage Unit Seismic Detector > --- WEAPON ----------- EM Pulse Gun EM Pulse Gun > --- INVENTORY -------- Ion Engine [Rating: 7] Favorites ----------- Power Ion Engine Engine Ion Engine Propulsion Aluminum Leg Leg Aluminum Leg Utility Small Storage Unit Device Seismic Detector Storage Small Storage Unit Processor Signal Interpreter Weapon EM Pulse Gun Energy Gun EM Pulse Gun Launcher Grenade Launcher Build | -11 -10 -10 ------- Run | Yrd Mat Min Slots Evolved . | . . . Power . | . . . Propulsion . | . . . Utility . | . . . Weapon . | . . . Parts Attached 14 | 7 5 2 Power 2 | 1 1 . Engine 2 | 1 1 . Core . | . . . Reactor . | . . . Propulsion 3 | 2 1 . Treads . | . . . Leg 3 | 2 1 . Wheel . | . . . Hover . | . . . Flight . | . . . Utility 4 | 2 1 1 Device 2 | 1 1 . Storage 1 | 1 . . Processor 1 | . . 1 Hackware . | . . . Protection . | . . . Artifact . | . . . Weapon 5 | 2 2 1 Energy Gun 4 | 2 2 . Energy Cannon . | . . . Ballistic Gun . | . . . Ballistic Cannon . | . . . Launcher 1 | . . 1 Special Weapon . | . . . Impact Weapon . | . . . Slashing Weapon . | . . . Piercing Weapon . | . . . Special Melee Weapon . | . . . Unidentified Prototypes . | . . . Parts Lost 9 | . 8 1 Power 1 | . 1 . Propulsion 3 | . 2 1 Utility 1 | . 1 . Weapon 4 | . 4 . Highest Loss Streak 3 | . 3 1 To Critical Strikes . | . . . Average Backups 4 | . 5 3 Power . | . . . Propulsion . | . . . Utility 2 | . 2 3 Weapon . | . 1 . Tool/Special . | . . . Unused Backups 2 | . . 2 Power . | . . . Propulsion . | . . . Utility 2 | . . 2 Weapon . | . . . Tool/Special . | . . . Average Slot Usage (%) 81 | . 93 62 Engine 14 | . 14 14 Leg 22 | . 27 14 Device 8 | . 13 . Storage 14 | . 14 14 Processor 4 | . . 11 Energy Gun 14 | . 23 . Launcher 3 | . . 8 Peak Build Rating 7 | 7 7 5 Average Rating 5 | 5 6 4 On Entrance 3 | . 7 3 Avg Prop Armor Cover (%) . | . . . Naked Turns . | . . . Heaviest Build 15 | 15 15 13 Greatest Support 20 | 20 20 10 Greatest Overweight (x) 1 | 1 1 1 Average Overweight (x) . | . . . Largest Inventory Capacity 8 | 8 8 8 Average Capacity 7 | 7 8 8 Most Carried 8 | 2 8 4 Average Carried 4 | . 5 3 Final Capacity 8 | 8 8 8 Final Carried 4 | 1 4 3 Class Distribution -------------------- 100% | Mutant Dominant Class ---------------- Mutant | -10/Materials Mutant | -10/Mines Resources | -11 -10 -10 ----------- Run | Yrd Mat Min Matter Collected 309 | 260 49 . Remotely . | . . . Salvage Created 424 | 67 357 . Parts 24 | 5 19 . Haulers Intercepted . | . . . Recyclers Shooed 1 | . 1 . Parts Field Recycled . | . . . Retrieved Matter . | . . . Parts Self-Destructed . | . . . Prevented . | . . . Parts Restored . | . . . Kills | -11 -10 -10 ------- Run | Yrd Mat Min Combat Hostiles Destroyed 6 | . 6 . Guns 4 | . 4 . AOE 1 | . 1 . Classes Destroyed 7 | 2 5 . Worker 1 | . 1 . Builder 1 | . 1 . Tunneler 1 | 1 . . Recycler 2 | 1 1 . Watcher 1 | . 1 . Swarmer 3 | . 3 . Grunt 3 | . 3 . Best Kill Streak 3 | 1 3 . Combat Bots Only 3 | . 3 . Max Kills in Single Turn 2 | 1 2 . Gunslinging 1 | . 1 . Exploded 1 | . 1 . Melee . | . . . Uniques/NPCs Destroyed . | . . . Combat | -11 -10 -10 -------- Run | Yrd Mat Min Hostile Shots Fired 105 | . 101 4 Missed 34 | . 33 1 Hits 71 | . 68 3 Projectile 71 | . 68 3 AOE 4 | . . 4 Damage Taken 981 | . 863 118 Core 255 | . 226 29 Absorbed by Shields . | . . . Core Remaining (%) 100 | 100 . . Volleys Fired 46 | 5 38 3 Largest 2 | 2 2 1 Hottest 80 | 80 80 30 Shots Fired 83 | 10 70 3 Gun 80 | 10 70 . Cannon . | . . . Launcher 3 | . . 3 Special . | . . . Kinetic . | . . . Thermal . | . . . Explosive 3 | . . 3 Electromagnetic 80 | 10 70 . Robot Hit Streak 6 | 3 6 3 Robot Miss Streak 7 | 2 7 . Penetration Max . | . . . Secondary Targets 2 | . 2 . Max Gunslinging Chain 1 | . 1 . Shots Hit Robots 48 | 5 40 3 Core Hits 21 | 3 15 3 Critical Kills . | . . . Critical Parts Destroyed . | . . . Critical Strikes . | . . . Melee Attacks . | . . . Impact . | . . . Slashing . | . . . Piercing . | . . . Sneak Attacks . | . . . Combat Hostiles . | . . . Follow-up Attacks . | . . . Damage Inflicted 851 | 86 739 26 Guns 664 | 61 603 . Cannons . | . . . Explosions 181 | 25 130 26 Melee . | . . . Ramming 6 | . 6 . Kinetic . | . . . Thermal 155 | 25 130 . Explosive 26 | . . 26 Electromagnetic 664 | 61 603 . Impact . | . . . Slashing . | . . . Piercing . | . . . Highest Corruption . | . . . Average Corruption . | . . . Corruption Purged . | . . . Corruption Blocked . | . . . Overload Shots . | . . . Overflow Damage . | . . . Projectiles . | . . . Explosions . | . . . Melee . | . . . Knockbacks . | . . . Impact . | . . . Kinetic . | . . . Secondary . | . . . Self-Inflicted Damage . | . . . Shots . | . . . Rammed . | . . . Targets Rammed 5 | . 4 1 Kicked 5 | . 4 1 Crushed . | . . . Highest Temperature 210 | 36 210 . Average Temperature 70 | 15 76 . Received Heat Transfer 435 | . 435 . Siege Activations . | . . . Martial Activations . | . . . Shielding Activations . | . . . Robots Disrupted . | . . . Combat Hostiles . | . . . Robots Corrupted 1 | . 1 . Combat Hostiles 1 | . 1 . Parts Fried 3 | . 3 . Impact Corruptions . | . . . Robots Melted . | . . . Combat Hostiles . | . . . Parts Melted . | . . . Heat Transferred 200 | 50 150 . Parts Sabotaged . | . . . Parts Stolen . | . . . Parts Stripped . | . . . Power Chain Reactions 3 | 1 2 . Alert | -11 -10 -10 ------- Run | Yrd Mat Min Maximum Alert Level . | . . . Low Security (%) 100 | 100 100 100 Level 1 . | . . . Level 2 . | . . . Level 3 . | . . . Level 4 . | . . . Level 5 . | . . . High Security . | . . . Max Security . | . . . Peak Influence 75 | 5 75 5 Initial 5 | . . 5 Average 10 | 1 17 . Influence Increases 279 | 10 269 . Destroy 0b10 Robot/C 120 | . 120 . Destroy 0b10 Robot/NC 30 | 10 20 . Destroy Leader 32 | . 32 . Successful Hack 30 | . 30 . Disable Machine 30 | . 30 . Destroy Structure 7 | . 7 . Lose Combat Pursuer 30 | . 30 . Influence Decreases 279 | 10 254 15 Entered New Map 10 | . . 10 Time Decay 248 | 10 233 5 Lost Part 21 | . 21 . Squads Dispatched 2 | . 2 . Investigation 1 | . 1 . Extermination . | . . . Reinforcement 1 | . 1 . Assault . | . . . Garrison . | . . . Intercept . | . . . Searches Triggered . | . . . Construction Impeded . | . . . Haulers Reinforced . | . . . Active Scanning Responses . | . . . Cargo Convoy Interrupts . | . . . Stealth | -11 -10 -10 --------- Run | Yrd Mat Min Distress Signals 1 | . 1 . Communications Jammed . | . . . Distress Signals . | . . . Times Spotted 23 | . 22 1 Peak Tracking Total 5 | . 5 1 Tactical Retreats 2 | . 2 . Traps | -11 -10 -10 ------- Run | Yrd Mat Min Traps Triggered . | . . . Indirectly . | . . . Trap Hack Attempts . | . . . Triggered . | . . . Disarmed . | . . . Reprogrammed . | . . . Reused . | . . . Traps Extracted . | . . . Installed . | . . . Triggered . | . . . Machines | -11 -10 -10 ---------- Run | Yrd Mat Min Machines Disabled 2 | . 2 . Max in Single Turn 1 | . 1 . Machines Repaired . | . . . Machines Dismantled . | . . . Machines Sabotaged . | . . . Overloaded Fab Kills . | . . . Hacking | -11 -10 -10 --------- Run | Yrd Mat Min Machines Accessed 2 | . 2 . Terminals 2 | . 2 . Fabricators . | . . . Repair Stations . | . . . Recycling Units . | . . . Scanalyzers . | . . . Garrison Access . | . . . Total Hacks 7 | . 7 . Successful 4 | . 4 . Failed 3 | . 3 . Catastrophic 1 | . 1 . Database Lockouts . | . . . Manual . | . . . Terminals 7 | . 7 . Fabricators . | . . . Repair Stations . | . . . Recycling Units . | . . . Scanalyzers . | . . . Garrison Access . | . . . Terminal Hacks 4 | . 4 . Record 1 | . 1 . Prototype ID Bank 1 | . 1 . Locate Traps 1 | . 1 . Dispatch Records 1 | . 1 . Fabricator Hacks . | . . . Repair Station Hacks . | . . . Recycling Unit Hacks . | . . . Scanalyzer . | . . . Garrison Access Hacks . | . . . Unauthorized Hacks . | . . . Terminals . | . . . Fabricators . | . . . Repair Stations . | . . . Recycling Units . | . . . Scanalyzers . | . . . Garrison Access . | . . . Data Cores Recovered . | . . . Used . | . . . Hacking Detections 2 | . 2 . Full Trace Events 1 | . 1 . Feedback Events . | . . . Feedback Blocked . | . . . Robot Schematics Acquired . | . . . Robots Built . | . . . Authchips . | . . . Time . | . . . Total Robot Build Rating . | . . . Part Schematics Acquired . | . . . Parts Built . | . . . Authchips . | . . . Time . | . . . Total Part Build Rating . | . . . Part Studies Acquired . | . . . Parts Repaired . | . . . Time . | . . . Parts Recycled . | . . . Recycled Matter . | . . . Retrieved Matter . | . . . Retrieved Components . | . . . Parts Scanalyzed . | . . . Part Schematics Acquired . | . . . Parts Damaged . | . . . Bothacking | -11 -10 -10 ------------ Run | Yrd Mat Min Used RIF Installer . | . . . Robots Hacked . | . . . Non-combat . | . . . Combat . | . . . Robot Hacks Applied . | . . . Relay Couplers Released . | . . . Fabnet Peak Effective % . | . . . Robots Rewired . | . . . Allies Hacked . | . . . Hacks Repelled . | . . . Allies | -11 -10 -10 -------- Run | Yrd Mat Min Total Allies . | . . . Largest Group . | . . . Highest-Rated Group . | . . . Highest-Rated Ally . | . . . Total Orders . | . . . Ally Attacks . | . . . Total Damage . | . . . Kills . | . . . Allies Corrupted . | . . . Allies Melted . | . . . Intel | -11 -10 -10 ------- Run | Yrd Mat Min Active Infowar (turns) 611 | 5 606 . Sensors 199 | . 199 . Seismic 412 | 5 407 . Robot Analysis Total . | . . . Derelict Logs Recovered . | . . . Drone Launches . | . . . Drone Recoveries . | . . . Exploration | -11 -10 -10 ------------- Run | Yrd Mat Min Turns Passed 1111 | 88 634 389 Spaces Moved 708 | 54 408 246 Core 5 | 5 . . Treads . | . . . Legs 703 | 49 408 246 Wheels . | . . . Hover . | . . . Flight . | . . . Fastest Speed 50 | 50 120 120 Average Speed 130 | 114 120 151 Slowest Speed 190 | 120 190 190 Overloaded Moves . | . . . Propulsion Burnouts . | . . . Robots Hopped . | . . . Potential Cave-ins . | . . . Cave-ins Triggered . | . . . Exploration Rate (%) 33 | 3 57 40 Regions Visited 2 Branch Regions 1 Pre-discovered Areas . | . . . Known Exits Taken . | . . . Unknown Exits Taken 2 | 1 1 . Scrap Searched . | . . . Spaces Dug . | . . . Terrain Destroyed 13 | . 6 7 Melee . | . . . Projectile . | . . . AOE 13 | . 6 7 Terrain Rammed . | . . . Walls Destroyed . | . . . Machines Disabled . | . . . Actions | -11 -10 -10 --------- Run | Yrd Mat Min Total 804 | 67 479 258 Wait 24 | . 18 6 Move 706 | 53 407 246 Hop . | . . . Pick Up 8 | 2 6 . Fast Attach 7 | 6 . 1 Attach 6 | 1 4 1 Detach . | . . . Swap 2 | . 2 . Drop . | . . . Fire 46 | 5 38 3 Melee . | . . . Ram . | . . . Kick 5 | . 4 1 Crush . | . . . Escape Stasis . | . . . Rewire . | . . . Trap . | . . . Miscellaneous . | . . . Route ------- -11/Scrapyard -10/Materials (discovered 2 exits: *Mat / [*Min]) -10/Mines (discovered 1 exit: *Mat) History --------- Turn | Location | Event 31 | -11/Scrapyard | Discovered new exit (range 15) 89 | -11/Scrapyard | Entered Materials 274 | -10/Materials | Discovered new exit (range 8) 300 | -10/Materials | Build established: Mutant 374 | -10/Materials | Discovered new exit (range 10) 660 | -10/Materials | Lost 3 parts (1p2w) 692 | -10/Materials | Core integrity fell below 50% 706 | -10/Materials | Core integrity fell below 20% 723 | -10/Materials | Entered Mines 725 | -10/Mines | Met a Derelict bent on vengeance 726 | -10/Mines | Lost 3 parts (2n1u) 764 | -10/Mines | Discovered new exit (range 10) 783 | -10/Mines | Identified exit to Materials 884 | -10/Mines | YI-UF0 nonchalantly dropped a Grenade Launcher on the ground 1046 | -10/Mines | Assembled infested the area 1051 | -10/Mines | Assisted by a Guerilla fighting off Assembled 1112 | -10/Mines | Destroyed by D-53 Grenadier with Mini Grenade Launcher Last Messages --------------- 00770_ K-01 Serf collects debris. 00783_ EXIT=IDENTIFIED: MATERIALS 00786_ K-01 Serf collects debris. 00884_ YI-UF0 nonchalantly drops a Grenade Launcher on the ground. 00886_ Acquired Grenade Launcher. 01004_ K-01 Serf collects debris. 01046_ ALERT: Infestation in the mines, dispatching Demolisher response squad. 01048_ K-01 Serf collects debris. 01051_ A derelict emerges from the shadows: "You need to get out of here! I've been tracking a group of Assembled to figure out where they're coming from, and they're closing on this area, come on!" 01058_ K-01 Serf collects debris. 01094_ YI-UF0 mumbles something. 01094_ Kicked U-05 Engineer. 01102_ The unstable cave ceiling collapses. 01110_ Aluminum Leg destroyed. Map ----- +----------------------------------------------------+ | ?????????????????????? ?????????### ####?????? | | ?????????????????????? ?????????# #?????? | | ?????????????????????# ?????????# """ #?????? | | ?????????????????????# ??????????# """ #?????? | | ?????????????????????# ??????????# """ #?????? | | ?????????????????????# #??????????# ####### | | ?????????????????????# #??????????# """ | | ???????????????????### #??????????# """ ####### | | ??????????????????## #??????????# """ #?????# | | ??????????????????# ##?????????# #?????# | | ??????????????????# #?????????#########?????# | | ????##????????????# #???????????????????????# | | ????# ?????????????# ##??????????????????????# | | ????# ???????????## ##?????????????????????# | | ????# ??????????## ##????????????????????# | | ???## ?????????## #????????????????????# | | ??## ?????????# #????????????????????# | | ??# #????????# #???????????????????## | | ??# ????????# ### ##???????????# ####### | | ??# ???????## ##?# ##????????????# | | ??# ???????# #??# #???????????????### | | ??# #####??# #### #?????????????????# | | ???# #### ## # ####??????????????#### | | ????# ## # #?????????????????# # | | ??????# # #???????????????### # | | ??????### ## @ #???????????????# # | | ????????## ## #?????????###### ### | | ?????????## # #????????# #?? | | ??????????## #???###??# ######?? | | ???????????# # #??## ##?# #??????? | | ???????????# d ### ### #??????? | | ???????????# ## # ## #??????? | | ???????????## ######## #####??????? | | ????????????#####??????# % #??????????? | | ??????????????????????? # ##??????????? | | ???????????????????????# # #######???????????? | | ????????????????????????### ?# ?????????????????? | | | | | | | | | | | | | | | | | | | | | | | | | | | +----------------------------------------------------+ Best States ------------- Heat Dissipation 25 Energy Generation 10 Energy Capacity 250 Matter Stores 300 Matter Capacity 300 Sight Range 16 Robot Scan Range 14 Terrain Scan Density 10 Evasion (%) 55 Item Schematics ----------------- None Robot Schematics ------------------ None Fabricated ------------ Nothing Repaired ---------- Nothing Studied --------- None Alien Tech Used ----------------- None Achievements -------------- None Challenges ------------ None Game ------ Seed VampiricPiercingKatana Manual? 0 Play Time 00:11:54 Cumulative 43.7 hours Start 2026.02.15 @ 15:14:56 End 2026.02.15 @ 15:35:48 Sessions 1 Manual Loads 0 Difficulty Rogue Special Mode None Game No. 48 Rogue 48 Adventurer 0 Explorer 0 Win Type - Total 0 Types 0/0/0/0/0/0/0/0/0/0 Lore% 20 Gallery% 17 Achievement% 17 Wizard Run 0 Options --------- Layout 1 ASCII 0 Keyboard 1 Movement Numpad Keybinds 0 Fullscreen 2 Font 24/Cog Map View 50x35 Zoom Use 0% Tactical HUD 1 Map Filters NONE Filters NONE Steam 1 RUN: 8724816d-e141-4408-8dc6-91cff0cdd497